Cogmind - Beta 14 *** ADVENTURER MODE // 2024.10.04 @ 02:35:01 Player: Ms. V3-11A Result: Destroyed by Enhanced Grunt with Neutron Cannon Performance ------------- Evolutions (3) 1500 Regions Visited (8) 1600 Robots Destroyed (102) 510 Value Destroyed (3786) 3786 Prototype IDs (227) 4540 Alien Tech Used (0) 0 Bonus (3184) 3184 TOTAL SCORE: 15120 Bonus ------- High Alert Combat Kills 91 Follower Combat Kills 44 Met Data Miner 300 Used Data Conduit 3000 Friendly Fire -251 Cogmind --------- Core Integrity 0/700 Matter 2/300 Energy 44/100 System Corruption 15% Temperature Cool (12) Movement Walking (260) Ox2 Location -7/Data Miner Parts ------- > --- POWER (2) -------- (None) > --- PROPULSION (4) --- Carbon-fiber Leg Carbon-fiber Leg > --- UTILITY (5) ------ Improved Heat Sink Huge Storage Unit Advanced Weight Redist. System Improved Shield Generator > --- WEAPON (2) ------- Gatling Laser Axe > --- INVENTORY (25) --- Heat Sink High-capacity Storage Unit Compact Battery (128) Improved Terrain Scanner Salvage Targeting Computer Improved Melee Analysis Suite Improved Melee Analysis Suite Improved Utility Shielding Improved Utility Shielding Improved Light Armor Plating Improved Light Armor Plating Improved Light Armor Plating Improved Medium Armor Plating Hacking Suite Hacking Suite System Mapper Quantum Router Authchip [Device] Power Bank Heavy Battle Rifle Heavy Battle Rifle Heavy Battle Rifle Scythe Peak State ------------ > --- POWER ------------ Improved Deuterium Engine Makeshift Power Source > --- PROPULSION ------- Light Treads Improved Treads Medium Treads Medium Treads > --- UTILITY ---------- Advanced Heat Sink Huge Storage Unit Improved Light Armor Plating Improved Shield Generator Makeshift Hacking Suite > --- WEAPON ----------- Enhanced Autogun Advanced EMP Blaster > --- INVENTORY -------- Light Treads Light Treads Light Treads High-capacity Storage Unit Advanced Weight Redist. System Improved Terrain Scanner Improved Utility Shielding Improved Utility Shielding Improved Light Armor Plating Improved Light Armor Plating Improved Light Armor Plating Improved Light Armor Plating Improved Shield Generator Improved Shield Generator Hacking Suite Hacking Suite Authchip [Device] Power Bank Improved Medium Laser Gatling Laser Flak Gun Heavy Flail Scythe [Rating: 51] Favorites ----------- Power Ion Engine Engine Ion Engine Power Core Light Nuclear Core Propulsion Light Treads Treads Light Treads Leg Carbon-fiber Leg Utility High-capacity Storage Unit Device Advanced Heat Sink Storage High-capacity Storage Unit Processor Targeting Computer Hackware Makeshift Hacking Suite Protection Improved Light Armor Plating Weapon Enhanced Autogun Energy Gun Improved Medium Laser Ballistic Gun Enhanced Autogun Launcher Advanced EMP Blaster Impact Weapon Power Maul Slashing Weapon Axe Build | -11 -10 -10 -10 -8 -7 -7 -7 -7 ------- Run | Yrd Mat Min Sub Mat Fac Low Low Dat Slots Evolved 6 | . . . . 4 2 . . . Power 1 | . . . . . 1 . . . Propulsion 2 | . . . . 1 1 . . . Utility 3 | . . . . 3 . . . . Weapon . | . . . . . . . . . Parts Attached 121 | 3 4 7 10 38 15 28 9 7 Power 16 | . 1 1 1 5 3 4 . 1 Engine 10 | . 1 1 . 3 3 2 . . Core 6 | . . . 1 2 . 2 . 1 Reactor . | . . . . . . . . . Propulsion 31 | 2 . 1 1 13 5 6 3 . Treads 26 | 2 . 1 1 10 5 6 1 . Leg 5 | . . . . 3 . . 2 . Wheel . | . . . . . . . . . Hover . | . . . . . . . . . Flight . | . . . . . . . . . Utility 31 | . 2 . 2 12 3 9 1 2 Device 13 | . . . 1 4 1 5 1 1 Storage 2 | . 1 . . . 1 . . . Processor 1 | . . . . 1 . . . . Hackware 3 | . . . . 3 . . . . Protection 12 | . 1 . 1 4 1 4 . 1 Artifact . | . . . . . . . . . Weapon 43 | 1 1 5 6 8 4 9 5 4 Energy Gun 17 | 1 . 2 5 3 2 2 1 1 Energy Cannon . | . . . . . . . . . Ballistic Gun 16 | . 1 3 1 4 1 4 2 . Ballistic Cannon . | . . . . . . . . . Launcher 7 | . . . . 1 1 2 2 1 Special Weapon . | . . . . . . . . . Impact Weapon 1 | . . . . . . 1 . . Slashing Weapon 2 | . . . . . . . . 2 Piercing Weapon . | . . . . . . . . . Special Melee Weapon . | . . . . . . . . . Unidentified Prototypes 3 | . . . . 3 . . . . Corrupted Parts 3 | . . . . . . 2 1 . System Corruption 11 | . . . . . . 7 4 . Parts Lost 31 | . . 1 3 4 1 12 7 3 Power 7 | . . . . 1 1 2 2 1 Propulsion 9 | . . . 1 2 . 3 3 . Utility 9 | . . 1 . . . 6 1 1 Weapon 6 | . . . 2 1 . 1 1 1 Highest Loss Streak 8 | . . 1 2 2 1 8 4 3 To Critical Strikes . | . . . . . . . . . Average Slot Usage (%) 92 | . 96 97 99 95 99 87 66 61 Engine 10 | . 14 14 10 6 14 12 4 . Core 1 | . . . 3 2 . 1 3 6 Treads 24 | . 28 28 28 20 30 26 11 . Leg 1 | . . . . 4 . . 4 15 Device 9 | . . . 7 14 15 12 15 18 Storage 10 | . 14 14 14 9 7 7 7 7 Hackware 2 | . . . . 7 7 1 . . Protection 8 | . 11 11 6 8 7 9 3 2 Energy Gun 8 | . 14 . 24 4 6 3 3 1 Ballistic Gun 12 | . 14 27 2 12 6 10 7 1 Peak Build Rating 51 | 6 8 11 19 37 51 51 40 42 Average Rating 25 | 5 7 9 16 32 49 42 31 33 On Entrance 22 | 6 6 8 10 19 36 51 40 29 Naked Turns . | . . . . . . . . . Heaviest Build 115 | 13 51 52 57 61 108 115 113 111 Greatest Support 99 | 40 40 40 40 60 99 99 80 39 Greatest Overweight (x) 30 | . 1 1 1 2 1 27 30 3 Average Overweight (x) . | . . 1 1 . . 1 2 2 Largest Inventory Capacity 25 | 8 20 20 20 20 25 25 25 25 Average Capacity 21 | 8 18 20 20 20 25 25 25 25 Most Carried 25 | 6 14 20 20 20 25 25 25 24 Average Carried 19 | 4 9 18 19 19 23 24 24 23 Final Capacity 25 | 8 20 20 20 20 25 25 25 25 Final Carried 25 | 2 14 20 18 20 25 24 25 23 Class Distribution -------------------- 43% | Mutant 42% | Scavenger-Mutant 14% | Hacker-Mutant Dominant Class ---------------- Mutant | -10/Materials Mutant | -10/Mines Mutant | -10/Subcaves Scavenger-Mutant | -8/Materials Hacker-Mutant | -7/Factory Scavenger-Mutant | -7/Lower Caves Scavenger-Mutant | -7/Lower Caves Scavenger-Mutant | -7/Data Miner Resources | -11 -10 -10 -10 -8 -7 -7 -7 -7 ----------- Run | Yrd Mat Min Sub Mat Fac Low Low Dat Matter Collected 2722 | 200 139 146 79 932 509 545 144 28 Remotely . | . . . . . . . . . Salvage Created 4725 | . 366 277 221 1844 859 862 268 28 Parts 196 | . 12 12 15 91 37 22 4 3 Haulers Intercepted 7 | . 2 . . 5 . . . . Recyclers Shooed 6 | . . . . 3 3 . . . Parts Field Recycled . | . . . . . . . . . Retrieved Matter . | . . . . . . . . . Parts Self-Destructed 20 | . . . . . . 12 8 . Prevented . | . . . . . . . . . Kills | -11 -10 -10 -10 -8 -7 -7 -7 -7 ------- Run | Yrd Mat Min Sub Mat Fac Low Low Dat Combat Hostiles Destroyed 82 | . 6 6 5 33 13 15 4 . Melee 1 | . . . . . . 1 . . Guns 76 | . 6 6 5 32 11 13 3 . AOE 2 | . . . . 1 1 . . . Classes Destroyed 18 | . 2 4 2 5 1 3 1 . Worker 3 | . . 1 . 1 1 . . . Hauler 7 | . 2 . . 5 . . . . Recycler 3 | . . . . 2 1 . . . Operator 3 | . . . . 3 . . . . Watcher 1 | . . . . 1 . . . . Swarmer 9 | . . 1 . 7 . 1 . . Grunt 45 | . 6 4 . 21 6 5 3 . Brawler 2 | . . . . . . 2 . . Sentry 9 | . . . . 4 4 1 . . Demolisher 1 | . . 1 . . . . . . Hunter 2 | . . . . 1 1 . . . Programmer 2 | . . . . . 2 . . . Behemoth 1 | . . . . . . . 1 . Artisan 2 | . . . 2 . . . . . Subdweller 5 | . . . 5 . . . . . Zionite 1 | . . 1 . . . . . . Packrat 1 | . . . . . . . 1 . Thug 1 | . . . . . . 1 . . Butcher 4 | . . . . . . 4 . . Mutant 2 | . . . . . . 1 1 . Best Kill Streak 7 | . 3 2 2 6 5 7 3 1 Combat Bots Only 7 | . 2 2 2 6 4 7 3 . Max Kills in Single Turn 2 | . 1 1 1 2 1 1 2 1 Gunslinging 1 | . . . . . . . 1 . Exploded 1 | . . . . 1 1 . . . Melee 1 | . . . . . . 1 . . Uniques/NPCs Destroyed 1 | . . . . . . . . 1 Data Miner (-7/Data Miner) Combat | -11 -10 -10 -10 -8 -7 -7 -7 -7 -------- Run | Yrd Mat Min Sub Mat Fac Low Low Dat Hostile Shots Fired 685 | . 30 30 28 186 189 141 51 30 Missed 216 | . 6 8 5 48 88 27 19 15 Damage Taken 6284 | . 247 284 485 1612 702 1834 574 546 Core 1162 | . 53 17 92 272 92 451 34 151 Absorbed by Shields 453 | . . . . . 101 343 . 9 Ignored by Resistances 1891 | . 76 84 108 467 258 596 155 147 Regen/Repaired (Parts) 382 | . . . . 333 49 . . . Core Remaining (%) 61 | 100 . . 35 50 . . . . Volleys Fired 377 | . 23 24 49 137 61 53 26 4 Largest 2 | . 2 2 2 2 2 2 2 1 Hottest 120 | . 60 40 120 85 81 81 84 80 Shots Fired 653 | . 46 44 89 245 112 81 32 4 Gun 625 | . 46 44 89 245 109 80 11 1 Cannon . | . . . . . . . . . Launcher 28 | . . . . . 3 1 21 3 Special . | . . . . . . . . . Kinetic 368 | . 23 40 7 172 53 67 6 . Thermal 251 | . 23 . 82 73 56 11 5 1 Explosive 8 | . . . . . . . 8 . Electromagnetic 26 | . . 4 . . 3 3 13 3 Robot Hit Streak 44 | . 25 11 27 22 35 25 41 44 Robot Miss Streak 6 | . 1 2 2 2 1 6 2 1 Penetration Max . | . . . . . . . . . Secondary Targets 21 | . 2 2 1 5 3 6 2 . Max Gunslinging Chain 1 | . 1 1 1 1 1 1 1 . Shots Hit Robots 511 | . 40 26 46 189 99 77 31 3 Core Hits 239 | . 18 15 11 80 34 55 22 4 Critical Kills 3 | . . 1 . 2 . . . . Critical Parts Destroyed 3 | . . . . . . 3 . . Critical Strikes 20 | . . 1 . 9 5 5 . . Burn 13 | . . . . 7 5 1 . . Destroy 4 | . . 1 . 2 . 1 . . Corrupt 1 | . . . . . . 1 . . Smash 2 | . . . . . . 2 . . Melee Attacks 3 | . . . . . . 2 . 1 Impact 2 | . . . . . . 2 . . Slashing 1 | . . . . . . . . 1 Piercing . | . . . . . . . . . Sneak Attacks 1 | . . . . . . . . 1 Combat Hostiles . | . . . . . . . . . Follow-up Attacks . | . . . . . . . . . Damage Inflicted 9490 | . 489 284 677 3273 2050 1490 974 253 Guns 7774 | . 489 284 677 3085 1678 1318 229 14 Cannons . | . . . . . . . . . Explosions 1540 | . . . . 188 372 79 745 156 Melee 175 | . . . . . . 92 . 83 Ramming 1 | . . . . . . 1 . . Kinetic 4771 | . 239 274 45 2183 756 1112 162 . Thermal 3049 | . 250 . 632 902 1010 174 67 14 Explosive 648 | . . . . 188 . . 460 . Electromagnetic 846 | . . 10 . . 284 111 285 156 Impact 92 | . . . . . . 92 . . Slashing 83 | . . . . . . . . 83 Piercing . | . . . . . . . . . Highest Corruption 15 | . . . . 3 2 11 15 15 Average Corruption 5 | . . . . 3 1 4 13 15 Corruption Purged . | . . . . . . . . . Corruption Blocked . | . . . . . . . . . Effects 124 | . . . . 30 8 30 40 16 Message Errors 28 | . . . . 7 3 8 9 1 Matter Fused 34 | . . . . 6 2 6 14 6 Heat Flow Errors 15 | . . . . 3 1 2 5 4 Energy Discharges 10 | . . . . 4 1 3 1 1 Parts Rejected 3 | . . . . 1 . . 2 . Parts Fused 1 | . . . . . . 1 . . Data Loss (minor) 21 | . . . . 7 1 7 3 3 Data Loss (major) 8 | . . . . 1 . 1 5 1 Misfires 2 | . . . . 1 . 1 . . Alerts 2 | . . . . . . 1 1 . Overload Shots . | . . . . . . . . . Overflow Damage 173 | . . . . 52 5 92 24 . Projectiles . | . . . . . . . . . Explosions 81 | . . . . 52 5 . 24 . Melee 92 | . . . . . . 92 . . Knockbacks 1 | . . . . . . 1 . . Impact 1 | . . . . . . 1 . . Kinetic . | . . . . . . . . . Secondary . | . . . . . . . . . Self-Inflicted Damage 40 | . . . . . 20 20 . . Shots 2 | . . . . . 1 1 . . Rammed 1 | . . . . . . 1 . . Targets Rammed 1 | . . . . . . 1 . . Kicked . | . . . . . . . . . Crushed . | . . . . . . . . . Highest Temperature 344 | . 105 35 126 308 189 344 208 176 Average Temperature 55 | . 40 10 37 38 36 131 51 72 Received Heat Transfer 2595 | . 201 111 42 1224 350 544 123 . Effects 4 | . . . . 1 . 3 . . Shutdowns 2 | . . . . . . 2 . . Short Circuit 2 | . . . . 1 . 1 . . Siege Activations . | . . . . . . . . . Robots Corrupted 3 | . . . . . 1 1 1 . Combat Hostiles 3 | . . . . . 1 1 1 . Parts Fried 2 | . . . . . . 2 . . Impact Corruptions 2 | . . . . . . 2 . . Robots Melted . | . . . . . . . . . Combat Hostiles . | . . . . . . . . . Parts Melted 8 | . . . 1 1 4 1 1 . Heat Transferred 6785 | . 550 . 850 2349 2394 444 148 50 Parts Sabotaged . | . . . . . . . . . Parts Stolen . | . . . . . . . . . Parts Stripped . | . . . . . . . . . Power Chain Reactions 2 | . . . . . 1 1 . . Alert | -11 -10 -10 -10 -8 -7 -7 -7 -7 ------- Run | Yrd Mat Min Sub Mat Fac Low Low Dat Peak Influence 571 | . 133 88 . 268 571 . . . Initial 99 | . . . . . 99 . . . Average 124 | . 43 25 . 115 356 . . . Maximum Alert Level 2 | . . . . 1 2 . . . Low Security (%) 80 | 100 100 100 . 86 23 . . . Level 1 9 | . . . . 13 25 . . . Level 2 10 | . . . . . 50 . . . Level 3 . | . . . . . . . . . Level 4 . | . . . . . . . . . Level 5 . | . . . . . . . . . High Security . | . . . . . . . . . Max Security . | . . . . . . . . . Squads Dispatched 14 | . 1 1 . 5 7 . . . Investigation 5 | . 1 1 . 1 2 . . . Extermination 2 | . . . . . 2 . . . Reinforcement 5 | . . . . 4 1 . . . Assault . | . . . . . . . . . Garrison 2 | . . . . . 2 . . . Intercept . | . . . . . . . . . Searches Triggered . | . . . . . . . . . Construction Impeded . | . . . . . . . . . Haulers Reinforced . | . . . . . . . . . Active Scanning Responses . | . . . . . . . . . Cargo Convoy Interrupts . | . . . . . . . . . Stealth | -11 -10 -10 -10 -8 -7 -7 -7 -7 --------- Run | Yrd Mat Min Sub Mat Fac Low Low Dat Distress Signals 6 | . 2 . . 4 . . . . Communications Jammed . | . . . . . . . . . Distress Signals . | . . . . . . . . . Times Spotted 140 | . 18 8 7 59 24 13 7 4 Peak Tracking Total 7 | . 4 3 2 5 4 7 4 4 Tactical Retreats 10 | . . . . 4 4 . 2 . Traps | -11 -10 -10 -10 -8 -7 -7 -7 -7 ------- Run | Yrd Mat Min Sub Mat Fac Low Low Dat Traps Triggered 7 | . 2 . 2 2 1 . . . Indirectly . | . . . . . . . . . Trap Hack Attempts . | . . . . . . . . . Triggered . | . . . . . . . . . Disarmed 6 | . . . . . 6 . . . Reprogrammed . | . . . . . . . . . Reused . | . . . . . . . . . Traps Extracted . | . . . . . . . . . Installed . | . . . . . . . . . Triggered . | . . . . . . . . . Machines | -11 -10 -10 -10 -8 -7 -7 -7 -7 ---------- Run | Yrd Mat Min Sub Mat Fac Low Low Dat Machines Disabled 11 | . . 5 1 2 3 . . . Max in Single Turn 2 | . . 1 1 2 2 . . . Garrison Access 2 | . . . . 1 1 . . . Machines Repaired . | . . . . . . . . . Machines Dismantled . | . . . . . . . . . Machines Sabotaged . | . . . . . . . . . Overloaded Fab Kills . | . . . . . . . . . Hacking | -11 -10 -10 -10 -8 -7 -7 -7 -7 --------- Run | Yrd Mat Min Sub Mat Fac Low Low Dat Machines Accessed 31 | . 8 2 2 8 8 . 1 2 Terminals 18 | . 8 1 . 3 6 . . . Fabricators . | . . . . . . . . . Repair Stations 2 | . . . . 1 1 . . . Recycling Units 1 | . . . . 1 . . . . Scanalyzers 2 | . . . . 2 . . . . Garrison Access 2 | . . . . 1 1 . . . Total Hacks 117 | . 26 4 5 38 25 . 1 18 Successful 94 | . 18 2 5 32 18 . 1 18 Failed 23 | . 8 2 . 6 7 . . . Catastrophic 3 | . 2 . . . 1 . . . Database Lockouts . | . . . . . . . . . Manual 40 | . 19 4 . 10 7 . . . Terminals 63 | . 26 3 . 15 19 . . . Fabricators . | . . . . . . . . . Repair Stations 6 | . . . . 4 2 . . . Recycling Units 2 | . . . . 2 . . . . Scanalyzers 15 | . . . . 15 . . . . Garrison Access 6 | . . . . 2 4 . . . Terminal Hacks 56 | . 10 2 5 6 14 . 1 18 Record 5 | . . . 4 1 . . . . Part Schematic 12 | . . . . . 2 . . 10 Robot Schematic 7 | . . . . . 2 . . 5 Robot Analysis 2 | . 1 . . 1 . . . . Prototype ID Bank 12 | . 6 1 . 1 1 . . 3 Open Door 2 | . . 1 . . . . 1 . Branch Access Points 3 | . 1 . . 1 1 . . . Terminal Index 1 | . . . . . 1 . . . Repair Station Index 1 | . . . . 1 . . . . Scanalyzer Index 2 | . 1 . . . 1 . . . Locate Traps 3 | . . . . . 3 . . . Disarm Traps 2 | . . . . . 2 . . . Hauler Manifests 1 | . . . . 1 . . . . Registered Components 1 | . . . . . 1 . . . Zone Layout 1 | . 1 . . . . . . . Derelict Proto ID Bank 1 | . . . 1 . . . . . Fabricator Hacks . | . . . . . . . . . Repair Station Hacks 6 | . . . . 4 2 . . . Scan Component 3 | . . . . 2 1 . . . Repair 3 | . . . . 2 1 . . . Recycling Unit Hacks 1 | . . . . 1 . . . . Retrieve Components 1 | . . . . 1 . . . . Scanalyzer 15 | . . . . 15 . . . . Insert Component 6 | . . . . 6 . . . . Analyze 9 | . . . . 9 . . . . Garrison Access Hacks 1 | . . . . 1 . . . . Seal Access 1 | . . . . 1 . . . . Unauthorized Hacks 15 | . 8 . . 5 2 . . . Terminals 14 | . 8 . . 5 1 . . . Botnet 6 | . 3 . . 2 1 . . . Skim 8 | . 5 . . 3 . . . . Fabricators . | . . . . . . . . . Repair Stations . | . . . . . . . . . Recycling Units . | . . . . . . . . . Scanalyzers . | . . . . . . . . . Garrison Access 1 | . . . . . 1 . . . Jam 1 | . . . . . 1 . . . Data Cores Recovered . | . . . . . . . . . Used . | . . . . . . . . . Hacking Detections 23 | . 7 1 . 7 8 . . . Full Trace Events 3 | . . . . 2 1 . . . Feedback Events . | . . . . . . . . . Feedback Blocked . | . . . . . . . . . Robot Schematics Acquired 7 | . . . . . 2 . . 5 Robots Built . | . . . . . . . . . Authchips . | . . . . . . . . . Time . | . . . . . . . . . Total Robot Build Rating . | . . . . . . . . . Part Schematics Acquired 18 | . . . . 6 2 . . 10 Parts Built . | . . . . . . . . . Authchips . | . . . . . . . . . Time . | . . . . . . . . . Total Part Build Rating . | . . . . . . . . . Parts Repaired 3 | . . . . 2 1 . . . Time 142 | . . . . 98 44 . . . Parts Recycled . | . . . . . . . . . Recycled Matter . | . . . . . . . . . Retrieved Matter . | . . . . . . . . . Retrieved Components 9 | . . . . 9 . . . . Parts Scanalyzed 6 | . . . . 6 . . . . Part Schematics Acquired 6 | . . . . 6 . . . . Parts Damaged 1 | . . . . 1 . . . . Bothacking | -11 -10 -10 -10 -8 -7 -7 -7 -7 ------------ Run | Yrd Mat Min Sub Mat Fac Low Low Dat Used RIF Installer . | . . . . . . . . . Robots Hacked . | . . . . . . . . . Non-combat . | . . . . . . . . . Combat . | . . . . . . . . . Robot Hacks Applied . | . . . . . . . . . Relay Couplers Released . | . . . . . . . . . Fabnet Peak Effective % . | . . . . . . . . . Robots Rewired 2 | . . . . . . 2 . . Allies Hacked . | . . . . . . . . . Hacks Repelled . | . . . . . . . . . Allies | -11 -10 -10 -10 -8 -7 -7 -7 -7 -------- Run | Yrd Mat Min Sub Mat Fac Low Low Dat Total Allies 8 | . . 6 . . . 2 . . Largest Group 3 | . . 3 3 . . 2 2 . Highest-Rated Group 80 | . . 80 39 . . 62 62 . Highest-Rated Ally 31 | . . 31 16 . . 31 31 . Total Orders . | . . . . . . . . . Ally Attacks 28 | . . 7 15 . . . 6 . Total Damage 400 | . . 71 216 . . . 113 . Kills 3 | . . 2 1 . . . . . Allies Corrupted . | . . . . . . . . . Allies Melted . | . . . . . . . . . Intel | -11 -10 -10 -10 -8 -7 -7 -7 -7 ------- Run | Yrd Mat Min Sub Mat Fac Low Low Dat Robot Analysis Total 147 | . 1 . . 1 . . . 145 Derelict Logs Recovered 4 | . . 1 . . . 2 1 . Drone Launches . | . . . . . . . . . Drone Recoveries . | . . . . . . . . . Exploration | -11 -10 -10 -10 -8 -7 -7 -7 -7 ------------- Run | Yrd Mat Min Sub Mat Fac Low Low Dat Turns Passed 11029 | 6 1280 2043 1744 2152 1396 1179 868 361 Spaces Moved 3786 | 1 452 544 659 871 498 387 261 113 Core 6 | . . . . . . 2 4 . Treads 3412 | 1 452 544 659 696 498 385 177 . Legs 368 | . . . . 175 . . 80 113 Wheels . | . . . . . . . . . Hover . | . . . . . . . . . Flight . | . . . . . . . . . Fastest Speed 160 | 160 160 240 240 160 160 240 240 260 Average Speed 230 | 160 219 240 240 186 232 250 292 286 Slowest Speed 1550 | 160 240 240 240 320 240 1400 1550 330 Overloaded Moves . | . . . . . . . . . Propulsion Burnouts . | . . . . . . . . . Robots Hopped . | . . . . . . . . . Cave-ins Triggered . | . . . . . . . . . Exploration Rate (%) 49 | 2 70 93 51 58 14 47 36 75 Regions Visited 8 Branch Regions 5 Pre-discovered Areas 31 | . . . . . . 1 . 30 Known Exits Taken 3 | . 1 . 1 . 1 . . . Unknown Exits Taken 5 | 1 . 1 . 1 . 1 1 . Scrap Searched 9 | . . 1 3 . . 4 1 . Spaces Dug . | . . . . . . . . . Terrain Destroyed 35 | . . . . 3 . 5 27 . Melee . | . . . . . . . . . Projectile . | . . . . . . . . . AOE 35 | . . . . 3 . 5 27 . Terrain Rammed . | . . . . . . . . . Walls Destroyed . | . . . . . . . . . Machines Disabled . | . . . . . . . . . Actions | -11 -10 -10 -10 -8 -7 -7 -7 -7 --------- Run | Yrd Mat Min Sub Mat Fac Low Low Dat Total 5521 | 7 693 1240 731 1219 640 508 338 145 Wait 1075 | . 202 656 . 105 56 17 27 12 Move 3778 | . 451 543 658 870 497 386 260 113 Hop . | . . . . . . . . . Pick Up 82 | . 12 8 6 29 7 9 6 5 Fast Attach 44 | . 4 . 2 16 4 13 5 . Attach 36 | 2 . . 4 11 2 9 2 6 Detach 9 | . . . 1 3 . 2 3 . Swap 41 | 1 . 7 4 11 9 6 2 1 Drop 69 | 4 1 2 7 37 4 4 7 3 Fire 377 | . 23 24 49 137 61 53 26 4 Melee 3 | . . . . . . 2 . 1 Ram 1 | . . . . . . 1 . . Kick . | . . . . . . . . . Crush . | . . . . . . . . . Escape Stasis . | . . . . . . . . . Rewire 6 | . . . . . . 6 . . Trap . | . . . . . . . . . Miscellaneous . | . . . . . . . . . Route ------- -11/Scrapyard -10/Materials (discovered 4 exits: *Mat x3 / *Min) -10/Mines (discovered 3 exits: *Mat x2 / *Sub) -10/Subcaves (discovered 3 exits: *Mat x2 / Rec) -8/Materials (discovered 2 exits: *Fac x2) -7/Factory (discovered 5 exits: [*Fac] / Sto x2 / *Low x2) -7/Lower Caves -7/Lower Caves -7/Data Miner (discovered 1 exit: [*Pro]) History --------- Turn | Location | Event 7 | -11/Scrapyard | Discovered new exit (range 0) 7 | -11/Scrapyard | Entered Materials 121 | -10/Materials | Identified exit to Mines 303 | -10/Materials | Build established: Mutant 327 | -10/Materials | Discovered new exit (range 16) 598 | -10/Materials | Learned 2 Storage zone layouts 702 | -10/Materials | Discovered new exit (range 14) 750 | -10/Materials | Learned Storage trap positions 810 | -10/Materials | Learned location of 1 exit from Recycling 858 | -10/Materials | Learned Storage stockpile data 922 | -10/Materials | Identified exit to Materials 1007 | -10/Materials | Learned location of 2 exits from Subcaves 1287 | -10/Materials | Entered Mines 1288 | -10/Mines | Assembled infested the area 1300 | -10/Mines | Met a Derelict shopkeep closing up shop 2060 | -10/Mines | Discovered exit to Materials (range 5) 2166 | -10/Mines | Discovered exit to Materials (range 6) 2169 | -10/Mines | Received a Mining Laser from a helpful Derelict 2633 | -10/Mines | Assisted by bots powering up and referring to "LRC-V3" 2872 | -10/Mines | Discovered new exit (range 13) 3330 | -10/Mines | Entered Subcaves 3330 | -10/Subcaves | Accompanied by 3 allies 3331 | -10/Subcaves | Identified exit to Recycling 3331 | -10/Subcaves | Identified exit to Materials 3672 | -10/Subcaves | Visited 4L-MR0's lab 3749 | -10/Subcaves | Found Power Bank 3957 | -10/Subcaves | Build established: Scavenger-Mutant 4099 | -10/Subcaves | Shifting Twisted Machinery released Battle Rifle 4102 | -10/Subcaves | Shifting Twisted Machinery released Sub. Optics 4160 | -10/Subcaves | Visited Clippyterm 4167 | -10/Subcaves | Learned Factory emergency access door positions 4246 | -10/Subcaves | Discovered exit to Materials (range 7) 4625 | -10/Subcaves | Core integrity fell below 50% 4631 | -10/Subcaves | Build established: Mutant 4709 | -10/Subcaves | Shifting Twisted Machinery released Sub. Monowheel 4728 | -10/Subcaves | Shifting Twisted Machinery released Flamer 5074 | -10/Subcaves | Entered Materials 5074 | -8/Materials | Evolved 4 slots: Propulsion x1, Utility x3 5610 | -8/Materials | Build established: Scavenger-Mutant 6732 | -8/Materials | Discovered new exit (range 8) 6844 | -8/Materials | Repaired Enh. Autogun 6884 | -8/Materials | Repaired Imp. Light Armor Plating 7184 | -8/Materials | Discovered new exit (range 14) 7226 | -8/Materials | Entered Factory 7226 | -7/Factory | Evolved 2 slots: Power x1, Propulsion x1 7322 | -7/Factory | Discovered new exit (range 14) 7527 | -7/Factory | Garrison activated, responded to threat 7673 | -7/Factory | Build established: Hacker-Mutant 7708 | -7/Factory | Discovered new exit (range 15) 7746 | -7/Factory | Identified exit to Storage 7746 | -7/Factory | Identified exit to Lower Caves 8482 | -7/Factory | Repaired Mak. Power Source 8622 | -7/Factory | Entered Lower Caves 8678 | -7/Lower Caves | Learned location of Zion (-6) 8894 | -7/Lower Caves | Learned Factory terminal intel 8897 | -7/Lower Caves | Attracted the attention of an 0b10 outpost 8971 | -7/Lower Caves | Destroyed 7 combat bots 8974 | -7/Lower Caves | Lost 4 parts (1n3u) 9275 | -7/Lower Caves | Build established: Scavenger-Mutant 9477 | -7/Lower Caves | Attacked by a faux Warlord 9509 | -7/Lower Caves | Core integrity fell below 50% 9547 | -7/Lower Caves | Lost 8 parts (2p2n3u1w) 9568 | -7/Lower Caves | System corruption reached 10% 9750 | -7/Lower Caves | Discovered new exit (range 10) 9801 | -7/Lower Caves | Entered another Lower Caves area 9801 | -7/Lower Caves | Accompanied by 2 allies 9829 | -7/Lower Caves | Encountered a Warlord checkpoint 10200 | -7/Lower Caves | Spotted B-75 Beast 10234 | -7/Lower Caves | Core integrity fell below 20% 10250 | -7/Lower Caves | Lost 4 parts (1p2n1w) 10348 | -7/Lower Caves | Destroyed B-75 Beast 10661 | -7/Lower Caves | Discovered new exit (range 4) 10669 | -7/Lower Caves | Entered Data Miner 10670 | -7/Data Miner | Discovered new exit (range 6) 10734 | -7/Data Miner | Met Data Miner 10837 | -7/Data Miner | Received God Mode back door access code from Data Miner 10989 | -7/Data Miner | Destroyed Data Miner 10992 | -7/Data Miner | Interfaced with the Data Conduit 10997 | -7/Data Miner | Found Prototype Hackware 11001 | -7/Data Miner | Found Prototype Hackware 11030 | -7/Data Miner | Destroyed by Enhanced Grunt with Neutron Cannon Last Messages --------------- 10989_ Data Miner destroyed. 10992_ Acquired 28 matter. 10992_ Interfacing with system... Downloaded 145 analysis records. Downloaded 756 prototype IDs. Downloaded central machine database. Downloaded 30 destinations. Downloaded encryption format records. Connection remotely terminated. 10995_ System corrupted: Matter fused (-6). 10997_ Acquired Prototype Hackware. 11003_ Enhanced Grunt shuts down. 11012_ Neutrino Core destroyed. 11013_ System corrupted: Component data lost. 11014_ Imp. Light Armor Plating destroyed. 11019_ Dropped Com. Battery. 11020_ Extracted 77 energy. 11021_ Enhanced Grunt reactivates. 11021_ Acquired Com. Battery. 11023_ Adv. EMP Blaster destroyed. Map ----- +----------------------------------------------------+ | | | | | | | | | | | | | | | | | | | | | | | | | | | | | ????????????????????????????????????????? | | ????????????????????????????????????????? | | ????????????????????????????????????????? | | ????????????????????????????????????????? | | ?????????????????????????????????????#### | | ??????###############??????????????### # | | ?????""""""""""""" ######????????## # | | ????""""""" " # # # #### < ## | | ????"""""" " g # | | ????""""" g | | ???""""""" g g | | ???"""""" @ | | ???"""""" = | | ????"""""" """""""""""""# | | ????"""""" """"############### | | ????""""""" """""###?????????????? | | ?????""""" " "#####???????????????? | | ??????######"## "#???????????????????? | | ???????????#"### "#???????????????????? | | ???????????#"### "#???????????????????? | | ???????????#"?# "#???????????????????? | | ?????????????## "#???????????????????? | | ?????????????# "#???????????????????? | | ?????????????### "#???????????????????? | | ???????????????# "##??????????????????? | | ??????????????## ""#??????????????????? | | ???????????#?## ""#??????????????????? | | ??????????##"#"X ""#??????????????????? | | ??????????""""" "####???????????????? | | ??????????""""" X"""""???????????????? | | ??????????##"#"X "##"#???????????????? | | ???????????#?## X""""#???????????????? | | ??????????????## "##"#???????????????? | | ???????????????#######??????????????????? | | ????????????????????????????????????????? | | ????????????????????????????????????????? | +----------------------------------------------------+ Best States ------------- Heat Dissipation 53 Energy Generation 28 Energy Capacity 360 Matter Stores 300 Matter Capacity 300 Sight Range 16 Terrain Scan Range 16 Terrain Scan Density 10 Additional Mass Support 9 Armor Coverage 375 Resistance: KI 20 Resistance: TH 20 Resistance: EX 20 Resistance: EM 20 Resistance: I 20 Resistance: S 20 Resistance: P 20 Evasion (%) 40 Targeting Accuracy 5 Recoil Reduction 4 Particle Charging 15 Offensive Hacking 21 Authchip Count 1 Item Schematics ----------------- Mak. Leg | -8/Materials | Scanalyzed Mak. Power Source | -8/Materials | Scanalyzed Battle Rifle | -8/Materials | Scanalyzed Multitool | -8/Materials | Scanalyzed Imp. Utility Shielding | -8/Materials | Scanalyzed Hacking Suite | -8/Materials | Scanalyzed Imp. EM Pulse Cannon | -7/Factory | Hacked Imp. Treads | -7/Factory | Hacked Adv. Focal Shield | -7/Data Miner | Free Adv. Thermal Shield | -7/Data Miner | Free Mass Driver | -7/Data Miner | Free Proton Cannon | -7/Data Miner | Free Enh. Gauss Cannon | -7/Data Miner | Free Imp. Launcher Guidance Computer | -7/Data Miner | Free Imp. Heavy Laser | -7/Data Miner | Free Thermal Defense Suite | -7/Data Miner | Free Lgt. Regenerative Plating | -7/Data Miner | Free Combat Drone Bay | -7/Data Miner | Free Robot Schematics ------------------ H-55 Commando | -7/Factory | Hacked S-27 Virus | -7/Factory | Hacked E-15 Imp | -7/Data Miner | Free R-10 Processor | -7/Data Miner | Free A-15 Conveyor | -7/Data Miner | Free L-41 Fighter | -7/Data Miner | Free M-22 Extractor | -7/Data Miner | Free Fabricated ------------ Nothing Alien Tech Used ----------------- None Achievements -------------- None Challenges ------------ None Game ------ Seed SeismicNeutronEngine Manual? 0 Play Time 01:06:02 Cumulative 436.6 hours Start 2024.10.04 @ 01:10:37 End 2024.10.04 @ 02:35:01 Sessions 1 Manual Loads 0 Difficulty Adventurer Special Mode None Game No. 318 Rogue 63 Adventurer 229 Explorer 26 Win Type - Total 2 Types 2/0/0/0/0/0/0/0/0 Lore% 82 Gallery% 80 Achievement% 69 Wizard Run 0 Options --------- Layout 2 ASCII 0 Keyboard 0 Movement Mouse Keybinds 0 Fullscreen 0 Font 18/CogNarrow Map View 64x51 Zoom Use 0% Tactical HUD 1 Map Filters NONE Filters BRIGHTNESS(115)|SATURATION(100)|LOW_CONTRAST(0,16,30) Steam 1 RUN: 456837eb-742e-4691-83af-cdc04b2feb2e